[Event "1000GM Memorial Day NY IM-C 2023"]
[Site "New York"]
[Date "2023.05.28"]
[Round "6.3"]
[White "Mahajan, Rushaan"]
[Black "Poliannikov, Danila"]
[Result "0-1"]
[ECO "A49"]
[WhiteElo "2279"]
[BlackElo "2278"]
[Annotator "TA"]
[PlyCount "221"]
[EventDate "2023.05.23"]
[EventType "tourn"]
[EventCountry "USA"]
[SourceTitle "playchess.com"]
[Source "ChessBase"]
[SourceQuality "1"]
[TimeControl "5400+30"]

{[%evp 19,221,25,25,35,39,29,28,7,50,21,33,0,0,-38,0,11,18,20,26,16,9,9,9,8,21,0,0,0,6,0,21,16,21,22,25,23,26,23,16,18,23,16,16,15,18,5,33,15,18,8,26,9,52,6,0,0,0,0,0,0,0,0,0,0,8,12,12,12,12,0,0,0,8,12,202,202,202,39,46,53,202,202,202,202,202,202,202,202,202,202,202,202,202,202,202,202,202,0,202,202,202,202,202,8,8,8,8,8,8,8,8,0,0,0,0,-8,-8,-29967,-29968,-29971,-29973,-29972,-29970,-29969,-29967,-29945,-12291,-6103,-81,-89,-74,-75,-75,-67,-68,-67,-60,-60,-60,-141,-130,-160,-154,-167,-167,-167,-200,-154,0,0,0,0,0,0,0,0,0,-243,-242,-245,-167,-186,0,0,0,0,0,0,0,0,0,0,0,0,0,0,0,0,0,-8,0,0,0,-29987,-29976,-29974,-10351,-29976,0,0,0,-29976,-29977,-29977,-29978,-29978,-29979,-29979,-29980,-29980,-29981,-29981,-29981,-29978]} 1. Nf3 {[%emt 0:10:13]} Nf6 {[%emt 0:00:06]} 2. b3 {[%emt 0:00:03]} g6 {[%emt 0:00:26]} 3. Bb2 {[%emt 0:00:02]} Bg7 {[%emt 0:00:09]} 4. g3 {[%emt 0:00:02]} O-O {[%emt 0:00:10]} 5. Bg2 {[%emt 0:00:01]} d6 {[%emt 0:00:11]} 6. d4 {[%emt 0:00:03]} Nbd7 {[%emt 0:00:11]} 7. O-O {[%emt 0:00:05]} Re8 {[%emt 0:00:09]} 8. a4 {[%emt 0:00:19]} a5 {[%emt 0:00:47]} 9. Re1 {[%emt 0:02:22]} Ne4 {[%emt 0:04:49]} 10. Nbd2 {[%emt 1:22:20]} Nxd2 {[%emt 0:06:02]} 11. Qxd2 {[%emt 0:00:00]} e5 {[%emt 0:04:19]} 12. dxe5 {[%emt 0:00:00]} dxe5 {[%emt 0:00:27]} 13. Qc3 {[%emt 0:00:00]} c6 {[%emt 0:02:11]} 14. Red1 {[%emt 0:00:00]} Qc7 {[%emt 0:14:37]} 15. Ng5 {[%emt 0:00:00]} Nf6 {[%emt 0:06:41]} 16. Ba3 {[%emt 0:00:00]} h6 {[%emt 0:04:33]} (16... e4 $15 {is superior.} 17. Bd6 Qd7) 17. Ne4 $11 {[%emt 0:00:00]} Nxe4 {[%emt 0:03:21]} 18. Bxe4 {[%emt 0:00:00]} Rd8 {[%emt 0:08:13]} 19. Rxd8+ {[%emt 0:00:00]} Qxd8 {[%emt 0:42:38]} 20. Qe1 {[%emt 0:00:00]} Qd4 {[%emt 0:00:00]} 21. Bg2 {[%emt 0:00:00]} Bf5 {[%emt 0:00:00]} 22. Rd1 {[%emt 0:00:00]} Qb6 {[%emt 0:00:00]} 23. e4 {[%emt 0:00:00]} Bg4 {[%emt 0:00:00]} 24. Rd3 {[%emt 0:00:00]} Rd8 {[%emt 0:00:00]} 25. Qd2 {[%emt 0:00:00]} Rxd3 {[%emt 0:00:00]} (25... Rd4 {simplifies} 26. Bb2 Rxd3 27. Qxd3 Qc7) 26. Qxd3 {[%emt 0:00:00]} Qd4 {[%emt 0:00:00]} 27. Qxd4 {[%emt 0:00:00]} exd4 {[%emt 0:00:00]} 28. f3 {[%emt 0:00:00]} Be6 {[%emt 0:00:00]} 29. Bf1 $1 {[%emt 0:00:00]} Bf8 {[%emt 0:00:00]} 30. Bc1 {[%emt 0:00:00]} Bc5 {[%emt 0:00:00]} 31. Bd3 {[%emt 0:00:00]} h5 {[%emt 0:00:00]} 32. Bd2 {[%emt 0:00:00]} Bb6 {[%emt 0:00:00]} 33. Kg2 {[%emt 0:00:00]} Kf8 {[%emt 0:00:00]} 34. f4 {[%emt 0:00:00]} Bc7 {[%emt 0:00:00]} 35. f5 {[%emt 0:00:00]} Bd7 {[%emt 0:00:00]} 36. fxg6 {[%emt 0:00:00]} (36. Kf3 $14 {is more appropriate.}) 36... fxg6 $11 {[%emt 0:00:00]} 37. Bf4 {[%emt 0:00:00]} Bxf4 {[%emt 0:00:00]} 38. gxf4 {[%emt 0:00:00]} b5 {[%emt 0:00:00]} 39. e5 {[%emt 0:02:29]} bxa4 {[%emt 0:00:00]} 40. bxa4 {[%emt 0:00:01]} c5 {[%emt 0:00:00]} 41. Bb5 $1 {[%emt 0:00:17]} (41. Bxg6 Bxa4 42. Kf2 (42. Bxh5 $2 Bxc2 43. Kf2 a4 $19) 42... Be8 $19) 41... c4 {[%emt 0:01:32]} 42. Kf3 {[%emt 0:04:25]} (42. Bxd7 $2 {loses.} d3 43. cxd3 c3 $19) 42... Bf5 {[%emt 0:01:57]} 43. Bxc4 {[%emt 0:00:11]} Bxc2 {[%emt 0:00:04]} 44. h4 {[%emt 0:02:31]} Ke7 {[%emt 0:02:23]} (44... Bxa4 45. Ke4 $16) 45. Bd5 {[%emt 0:01:08]} Kf8 {[%emt 0:02:43]} 46. Ke2 {[%emt 0:01:21]} Kg7 $2 {[%emt 0:00:54]} (46... Ke7 $11) 47. Bc6 {[%emt 0:03:23]} Kf7 {[%emt 0:00:24]} 48. Kd2 $2 {[%emt 0:00:18]} (48. Bb5 $1 $18) 48... Bf5 $14 {[%emt 0:00:32]} 49. Bd5+ {[%emt 0:00:09]} Kg7 {[%emt 0:00:14]} (49... Ke7 $14) 50. Bc4 $18 {[%emt 0:01:00]} Be4 {[%emt 0:00:24]} 51. Bb3 {[%emt 0:00:34]} Bf5 {[%emt 0:00:16]} 52. Kc1 {[%emt 0:00:50]} Be4 {[%emt 0:00:29]} 53. Kb2 {[%emt 0:00:22]} Bc6 {[%emt 0:01:00]} 54. Kc2 {[%emt 0:00:58]} Be4+ {[%emt 0:00:14]} 55. Kd1 {[%emt 0:00:27]} Bd3 {[%emt 0:00:58]} 56. Bd5 {[%emt 0:00:40]} Bf5 {[%emt 0:01:31]} 57. Kd2 {[%emt 0:00:40]} Bb1 {[%emt 0:00:12]} 58. Bc4 {[%emt 0:00:07]} Be4 $1 {[%emt 0:00:11]} 59. Ba2 {[%emt 0:00:34]} Kh6 {[%emt 0:03:19]} 60. Bb3 {[%emt 0:00:23]} Bf5 {[%emt 0:00:18]} 61. e6 $2 {[%emt 0:01:48]} ({White should play} 61. Bc2 $18 {Intending Bxf5 and mate.} Bd7 62. Be4) 61... Kg7 $11 {[%emt 0:00:04]} 62. e7 {[%emt 0:00:31]} Bd7 {[%emt 0:00:03]} 63. Kd3 {[%emt 0:00:05]} Kf6 {[%emt 0:00:13]} (63... Be8 {with more complications.} 64. Ke4 Kf6 65. Kxd4 Bd7) 64. Kxd4 {[%emt 0:00:04]} Kxe7 {[%emt 0:00:02]} 65. Ke5 {[%emt 0:01:13]} Bf5 {[%emt 0:00:19]} 66. Bd1 {[%emt 0:00:51]} Bb1 {[%emt 0:00:25]} 67. Kd5 {[%emt 0:00:37]} Kf6 {[%emt 0:00:16]} 68. Kc5 $2 {[%emt 0:00:15][%mdl 8192]} (68. Kd4 $11) 68... Kf5 {[%emt 0:00:27]} 69. Kb6 {[%emt 0:00:06]} Kxf4 {[%emt 0:00:38]} 70. Kxa5 {[%emt 0:00:08]} Kg3 {[%emt 0:03:28]} 71. Kb6 {[%emt 0:00:09]} Bd3 {[%emt 0:00:00]} 72. a5 {[%emt 0:00:32]} Kxh4 {[%emt 0:00:00]} 73. Ba4 {[%emt 0:00:18]} g5 $2 {[%emt 0:00:00]} (73... Kg3 $19 {is more deadly.} 74. Bd7 h4) 74. Bb5 $17 {[%emt 0:00:26]} Bxb5 {[%emt 0:00:00]} 75. Kxb5 {[%emt 0:00:01]} g4 {[%emt 0:00:00]} 76. a6 {[%emt 0:00:03]} g3 {[%emt 0:00:00]} 77. a7 {[%emt 0:00:02]} g2 {[%emt 0:00:00]} 78. a8=Q {[%emt 0:00:02]} g1=Q {[%emt 0:00:00]} (78... g1=B {leads to mate.} 79. Qh1+ Kg5 80. Qxg1+ Kf5 81. Qg3 Ke6 82. Kc5 Kf5 83. Qh4) 79. Kc4 {[%emt 0:00:45]} (79. Qe4+ $15 Qg4 80. Qe1+ Kg5 81. Qd2+ Qf4 82. Qg2+ Kf5 83. Qc2+ Qe4 84. Qf2+ Kg4 85. Qg1+ Kf4 86. Qf2+ Kg4 87. Qg1+ Kh4 88. Qh2+ Kg5 89. Qd2+ Kg4 90. Qd1+ Qf3 91. Qd4+ Kg3 92. Qd6+ Kf2 93. Qd4+ Kf1 94. Qh4) 79... Qf1+ {[%emt 0:00:19]} 80. Kd4 {[%emt 0:00:16]} Qf4+ {[%emt 0:00:20]} 81. Kd3 {[%emt 0:00:25]} Kg3 $1 {[%emt 0:00:20]} 82. Qg8+ {[%emt 0:02:15]} Kf2 $1 {[%emt 0:00:15]} 83. Qa2+ {[%emt 0:00:22]} Kg3 $2 {[%emt 0:01:00]} (83... Kg1 $1 $17 {( -> ...Qg3+)} 84. Qg8+ Kf1) 84. Qg8+ $11 {[%emt 0:00:03]} Qg4 {[%emt 0:00:28]} 85. Qb8+ {[%emt 0:00:02]} Kh3 {[%emt 0:00:11]} (85... Kf2 $5 86. Qh2+ $8 Kf3 87. Qh1+ Kf4 88. Qc1+ Kg3 89. Qg1+ Kh4 90. Qf2+ Kg5 $11) 86. Kd2 {[%emt 0:01:09]} h4 {[%emt 0:00:32]} 87. Qh8 {[%emt 0:01:42]} Kg2 {[%emt 0:00:22]} 88. Qa8+ $2 {[%emt 0:00:20]} (88. Qf6 $11 {and White is okay.}) 88... Qf3 $19 {[%emt 0:00:11]} 89. Qg8+ {[%emt 0:01:12]} Kh1 {[%emt 0:00:12]} 90. Qh7 {[%emt 0:00:39]} h3 $2 {[%emt 0:00:31]} (90... Qf2+ $1 $19 91. Kd1 Kh2 92. Qc7+ Kg1 93. Qg7+ Kf1) 91. Ke1 $1 $11 {[%emt 0:00:14]} Qg3+ {[%emt 0:00:48]} (91... h2 $5) 92. Ke2 {[%emt 0:00:38]} Qe5+ {[%emt 0:01:51]} 93. Kf3 {[%emt 0:00:47]} Qd5+ {[%emt 0:00:40]} 94. Kg3 {[%emt 0:00:39]} Qg2+ {[%emt 0:00:17]} 95. Kh4 {[%emt 0:00:28]} Qf2+ {[%emt 0:00:13]} 96. Kh5 {[%emt 0:00:32]} Qf3+ {[%emt 0:00:57]} 97. Kh6 {[%emt 0:00:30]} Qf6+ {[%emt 0:02:22]} ({But not} 97... h2 $2 98. Qg6 $19) 98. Kh5 {[%emt 0:00:02]} Qf3+ {[%emt 0:00:17]} 99. Kh6 {[%emt 0:00:09]} h2 {[%emt 0:00:29]} 100. Qb1+ {[%emt 0:00:46]} Kg2 {[%emt 0:00:02]} 101. Qc2+ $2 {[%emt 0:00:23][%mdl 8192]} (101. Qa2+ $11 Kg3 102. Qg8+ Kf2 103. Qa2+ Qe2 104. Qf7+ Ke1 105. Qb7 Qe3+ 106. Kh7 Qh3+ 107. Kg8 h1=Q 108. Qb4+ Kf1 109. Qb1+ Kg2 110. Qb2+ Kg1 111. Qd4+ Kh2 112. Qf2+ Q1g2+ 113. Qxg2+ Kxg2 114. Kg7 Qe6 115. Kh8 Kg3 116. Kg7 Kf4 117. Kf8 Kf5 118. Kg7 Qe7+ 119. Kg8 Kf6 120. Kh8 Qg7#) 101... Kh3 {[%emt 0:00:34]} 102. Qc8+ {[%emt 0:00:11]} Kh4 {[%emt 0:00:33]} (102... Kg3 $142 103. Qg8+ Kf2 104. Qa2+ Qe2 105. Qf7+ Ke1 106. Qb7 Qe3+ 107. Kg6 Qg3+ 108. Kf6 Qh4+ 109. Kf5 Qh3+ 110. Kf6 Qh4+ 111. Kf5 Qh3+ 112. Kf6 Qh4+) 103. Qd8+ {[%emt 0:00:36]} Kg4 {[%emt 0:00:17]} 104. Qg8+ $1 {[%emt 0:00:35]} Kh3 {[%emt 0:00:45]} 105. Qc8+ {[%emt 0:00:07]} Kg3 $1 {[%emt 0:00:41]} 106. Qg8+ {[%emt 0:00:05]} Kf2 {[%emt 0:00:24]} 107. Qa2+ {[%emt 0:00:08] [#]} Qe2 $1 {[%emt 0:00:08]} 108. Qf7+ {[%emt 0:00:11] [#]} Ke1 $1 {[%emt 0:00:14]} 109. Qb7 {[%emt 0:00:17]} Qe3+ {[%emt 0:00:33]} 110. Kg6 {[%emt 0:01:02]} Qg1+ {[%emt 0:00:07]} 111. Kf5 {[%emt 0:00:04]} 0-1

[Event "1000GM Memorial Day NY IM-C 2023"]
[Site "New York"]
[Date "2023.05.28"]
[Round "6.4"]
[White "Zumsande, Martin"]
[Black "Paragua, Mark"]
[Result "1/2-1/2"]
[WhiteElo "2454"]
[BlackElo "2442"]
[Annotator "TA"]
[PlyCount "28"]
[EventDate "2023.05.23"]
[EventType "tourn"]
[EventCountry "USA"]
[SourceTitle "playchess.com"]
[Source "ChessBase"]
[SourceQuality "1"]
[TimeControl "5400+30"]

{[%evp 11,15,0,0,-14,-10,-11]} 1. e4 {[%emt 0:00:03]} c5 {[%emt 0:01:54]} 2. Nf3 {[%emt 0:00:06]} d6 {[%emt 0:00:36]} 3. c3 {[%emt 0:00:07]} Nf6 {[%emt 0:00:09]} 4. Be2 {[%emt 0:00:08]} g6 {[%emt 0:00:13]} 5. O-O {[%emt 0:00:22]} Bg7 {[%emt 0:00:04]} 6. d3 {[%emt 0:00:32]} O-O {[%emt 0:00:08]} 7. Be3 $1 {[%emt 0:00:21][%mdl 4] is currently scoring better than 7.Nbd2. B50: Sicilian: 2...d6, Miscellaneous.} Nc6 {[%emt 0:00:27]} 8. Nbd2 {[%emt 0:00:30] [#] An uneventful encounter.} {Predecessor:} e5 $146 9. a3 h6 10. h3 b6 11. b4 Re8 12. b5 Na5 13. c4 Nh5 14. Re1 Nf4 {1-0 Aronian,L (2765)-Wojtaszek,R (2696) Warsaw Superbet Classic Blitz 2022 (4.1)} 1/2-1/2

[Event "1000GM Memorial Day NY IM-C 2023"]
[Site "New York"]
[Date "2023.05.28"]
[Round "6.5"]
[White "Lee, Megan"]
[Black "Reiss, Aiden"]
[Result "0-1"]
[ECO "B45"]
[WhiteElo "2261"]
[BlackElo "2138"]
[Annotator "TA"]
[PlyCount "64"]
[EventDate "2023.05.23"]
[EventType "tourn"]
[EventCountry "USA"]
[SourceTitle "playchess.com"]
[Source "ChessBase"]
[SourceQuality "1"]
[TimeControl "5400+30"]

{[%evp 12,64,26,43,36,34,34,26,31,33,50,19,28,13,38,15,15,-64,-71,-68,-43,-70,-54,-87,-55,-121,-54,-159,-159,-143,-114,-158,-149,-412,-400,-437,-425,-435,-404,-954,-676,-649,-485,-479,-283,-579,-561,-533,-206,-1240,-1177,-29996,-29997,-29998,-29999]} 1. e4 {[%emt 0:00:01]} c5 {[%emt 0:01:20]} 2. Nf3 {[%emt 0:00:04][%cal Bg1f3,Bf3d4,Bd4b5][%mdl 32]} e6 {[%emt 0:00:22]} 3. d4 {[%emt 0:00:04]} cxd4 {[%emt 0:00:03]} 4. Nxd4 {[%emt 0:00:06]} Nc6 {[%emt 0:00:04]} 5. Nc3 {[%emt 0:01:05]} Nf6 {[%emt 0:00:06]} 6. Ndb5 {[%emt 0:00:18]} Bc5 {[%emt 0:00:11]} 7. Bf4 $1 {[%emt 0:00:33] [#] Black must now prevent Nc7+. The main line 7.Bf4 scores better than 7.Nd6+.} O-O {[%emt 0:00:05] B45: Sicilian Four Knights.} 8. Bc7 {[%emt 0:01:24]} Qe7 {[%emt 0:00:27] ...d5 would be deadly.} 9. Bd6 $1 {[%emt 0:01:44]} Bxd6 {[%emt 0:00:10] White has an edge.} 10. Qxd6 {[%emt 0:01:55]} Qd8 {[%emt 0:00:23]} 11. O-O-O {[%emt 0:04:28]} a6 {[%emt 0:00:21]} 12. Nd4 {[%emt 0:06:17]} Ne7 {[%emt 0:00:07]} 13. Qg3 {[%emt 0:08:25]} b5 {[%emt 0:02:12][%cal Bb7b5,Bb5b4][%mdl 32] aiming for ...b4.} 14. Bd3 {[%emt 0:05:41]} ({White should play} 14. e5 $11 Nfd5 15. Ne4) 14... b4 $15 {[%emt 0:05:12]} 15. Nce2 {[%emt 0:12:55] [#]} a5 $146 {[%emt 0:09:13]} ({Predecessor:} 15... Bb7 16. e5 Nfd5 17. h4 Qa5 18. Kb1 Rab8 19. h5 h6 20. Qh4 Qb6 21. g4 Nc3+ 22. bxc3 bxc3+ {½-½ Garrido Outon,A (2359)-David,A (2428) Titled Tuesday intern op 22nd Sept blitz 2020 (5)}) 16. f4 {[%emt 0:06:17]} Ba6 {[%emt 0:08:50]} 17. e5 {[%emt 0:06:20]} Nfd5 {[%emt 0:03:56]} 18. Rhf1 {[%emt 0:02:46]} (18. f5 $15 Bxd3 {[%mdl 64] Remove Defender} 19. Rxd3) 18... Qb6 {[%emt 0:04:18]} ({Better is} 18... Bxd3 $17 19. Qxd3 d6) 19. Qh3 {[%emt 0:07:47]} ({White should try} 19. f5 $15) 19... Bxd3 $17 {[%emt 0:03:37]} 20. Rxd3 {[%emt 0:00:17]} Ng6 {[%emt 0:07:30]} 21. Qh5 {[%emt 0:04:27]} a4 {[%emt 0:07:03][%cal Ob4b3]} ({And not} 21... h6 22. f5 exf5 23. Nxf5 $11 (23. Qxf5 Rae8 $17)) 22. g4 $2 {[%emt 0:04:32][%mdl 8192] [#] Loses the game.} (22. g3 $17) 22... b3 $1 $19 {[%emt 0:01:46][%mdl 512]} 23. axb3 {[%emt 0:01:35]} (23. cxb3 a3) 23... a3 {[%emt 0:05:40]} 24. bxa3 {[%emt 0:18:29]} Rxa3 {[%emt 0:00:06]} 25. Rdf3 {[%emt 0:03:08]} (25. Qh3 $142 Rfa8 26. Kd2) 25... Ra1+ {[%emt 0:06:11]} 26. Kd2 {[%emt 0:00:16]} Qa5+ {[%emt 0:08:28]} 27. c3 {[%emt 0:01:00]} Qa2+ {[%emt 0:01:23]} (27... Rc8 $2 28. Rxa1 Qxa1 29. Nc2 $19) (27... Ra2+ $142 28. Nc2 Rc8) 28. Kd3 $2 {[%emt 0:00:24]} (28. Nc2 {was the only defense.} Rxf1 29. Rxf1) 28... f6 {[%emt 0:05:02]} ({But not} 28... Rc8 $2 29. c4 Nb4+ 30. Ke3 $17) 29. exf6 {[%emt 0:00:58]} Rxf6 {[%emt 0:01:41]} (29... Rxf1 30. Rxf1 Rxf6) 30. g5 $2 {[%emt 0:01:20]} (30. Rxa1 Qxa1 31. Kd2) 30... Rxf1 {[%emt 0:01:20]} 31. gxf6 {[%emt 0:01:24]} Rd1+ {[%emt 0:00:39]} 32. Kc4 {[%emt 0:00:00]} Qa6+ {[%emt 0:00:05] An entertaining game by Reiss.   Weighted Error Value: White=0.90/Black=0.49} 0-1

[Event "1000GM Memorial Day NY IM-C 2023"]
[Site "New York"]
[Date "2023.05.29"]
[Round "7.1"]
[White "Reiss, Aiden"]
[Black "Sazci, Bilgen"]
[Result "1-0"]
[ECO "B98"]
[WhiteElo "2138"]
[BlackElo "1827"]
[Annotator "TA"]
[PlyCount "45"]
[EventDate "2023.05.23"]
[EventType "tourn"]
[EventCountry "USA"]
[SourceTitle "playchess.com"]
[Source "ChessBase"]
[SourceQuality "1"]
[TimeControl "5400+30"]

{[%evp 24,45,33,7,180,-226,99,110,87,104,106,103,105,104,108,97,100,63,109,102,239,228,665,655]} 1. e4 {[%emt 0:03:51]} c5 {[%emt 0:00:19]} 2. Nf3 {[%emt 0:00:02]} d6 {[%emt 1:31:11]} 3. d4 {[%emt 0:00:20]} cxd4 {[%emt 0:00:00]} 4. Nxd4 {[%emt 0:00:02]} Nf6 {[%emt 0:00:00]} 5. Nc3 {[%emt 0:00:01]} a6 {[%emt 0:00:00]} 6. Bg5 {[%emt 0:00:03]} e6 {[%emt 0:00:00]} 7. f4 {[%emt 0:00:07]} Be7 {[%emt 0:00:00]} 8. Qf3 {[%emt 0:00:01]} h6 {[%emt 0:00:00]} 9. Bh4 {[%emt 0:00:03]} g5 {[%emt 0:00:00]} 10. fxg5 {[%emt 0:00:04]} Nfd7 {[%emt 0:00:00]} 11. Nxe6 {[%emt 0:00:13]} fxe6 {[%emt 0:00:00]} 12. Qh5+ {[%emt 0:00:02]} Kf8 {[%emt 0:00:00]} 13. Bb5 $1 {[%emt 0:00:09]} Ne5 $2 {[%emt 0:00:00] B98: Sicilian Najdorf: 6 Bg5 e6 7 f4 Be7, sidelines.} (13... axb5 $2 14. Rf1+ $18) (13... Rh7 $1 $11 {and Black has nothing to worry.} 14. O-O+ Kg8) 14. O-O+ $4 {[%emt 0:00:04][%mdl 8192]} (14. Bg3 $1 $18 {[%cal Rg3e5] is the narrow road to win.} Rh7 15. Bxe5 dxe5 16. Rd1) 14... Kg7 $2 {[%emt 0:00:00] [#]} (14... Kg8 $19 15. Rf6 Bxf6 16. gxf6 Qf8) 15. Bg3 $1 $16 {[%emt 0:00:21] White threatens Bxe5+ and mate. Chess con chili.} Ng6 {[%emt 0:00:00][%cal Oh6g5] Threatens to win with ...hxg5! White is better.} (15... axb5 {is a self mate.} 16. Bxe5+) 16. gxh6+ {[%emt 0:00:09]} Rxh6 {[%emt 0:00:00] [#]} 17. Rf7+ $3 {[%emt 0:00:02][%mdl 576] Deflection} Kxf7 {[%emt 0:00:00]} 18. Qxh6 {[%emt 0:00:03]} axb5 {[%emt 0:00:00] [#]} 19. Rf1+ $1 {[%emt 0:00:22][%mdl 64] Deflection} Ke8 {[%emt 0:00:00] ...Ne5 is the strong threat.} 20. Qxg6+ {[%emt 0:00:03]} Kd7 {[%emt 0:00:00]} 21. Rf7 {[%emt 0:00:05][%mdl 1024] [#] White has strong compensation. White has more active pieces.} (21. Nxb5 $2 {loses.} Qb6+ 22. Rf2 Qxb5 $19) 21... Kc6 $146 {[%emt 0:00:00] [#]} (21... b4 $16 22. Nd5 exd5) ({Predecessor:} 21... b4 22. Ne2 Nc6 23. h4 Qb6+ 24. Bf2 Qb5 25. Nd4 Qe5 26. Nxc6 bxc6 27. Qh7 c5 28. Rxe7+ {1-0 Vivas Zamora,F (2344)-Schut,H (2101) Titled Tuesday intern op 15st Dec blitz 2020 (10)}) 22. Qh5 $1 $18 {[%emt 0:27:17]} b6 $2 {[%emt 0:00:00] [#]} (22... Bg5 $2 23. Qe2 Qa5 24. Qd3 $18) (22... Nd7) 23. Bh4 $1 {[%emt 1:08:36][%mdl 512] Beautiful play by Reiss!   Weighted Error Value: White=0.47/Black=2.01} 1-0